Cogmind - Beta 16.1 @@@ ROGUE MODE // 2026.04.17 @ 02:30:47 Player: Shimejimeji Result: Self-destructed Performance ------------- Evolutions (2) 1000 Regions Visited (3) 600 Robots Destroyed (30) 150 Value Destroyed (515) 515 Prototype IDs (0) 0 Alien Tech Used (0) 0 Bonus (0) 0 TOTAL SCORE: 2265 Bonus ------- None Cogmind --------- Core Integrity 454/550 Matter 186/300 Energy 100/100 System Corruption 0% Temperature Cool (10) Movement Core (400) Ox7 Location -8/Materials Parts ------- > --- POWER (1) -------- (None) > --- PROPULSION (2) --- (None) > --- UTILITY (6) ------ Large Storage Unit Improved Signal Interpreter Transport Network Coupler Core Shielding > --- WEAPON (2) ------- Assault Rifle > --- INVENTORY (15) --- Light Ion Engine Improved Signal Interpreter Seismic Detector Core Shielding Hacking Suite Beam Rifle Heavy Particle Cannon Assault Cannon Mining Laser Peak State ------------ > --- POWER ------------ Light Ion Engine > --- PROPULSION ------- Light Treads Wheel > --- UTILITY ---------- Large Storage Unit Improved Sensor Array Improved Signal Interpreter Seismic Detector Transport Network Coupler Light Armor Plating > --- WEAPON ----------- Assault Rifle Mining Laser > --- INVENTORY -------- Ion Engine Light Ion Engine Seismic Detector Core Shielding Core Shielding Beam Rifle Heavy Particle Cannon Assault Rifle Assault Rifle [Rating: 16] Favorites ----------- Power Light Ion Engine Engine Light Ion Engine Propulsion Light Treads Treads Light Treads Wheel Wheel Utility Seismic Detector Device Seismic Detector Storage Large Storage Unit Processor Transport Network Coupler Protection Light Armor Plating Weapon Assault Rifle Energy Gun Medium Laser Ballistic Gun Assault Rifle Special Weapon Mining Laser Build | -11 -10 -10 -8 ------- Run | Yrd Mat Sub Mat Slots Evolved 4 | . . . 4 Power . | . . . . Propulsion . | . . . . Utility 4 | . . . 4 Weapon . | . . . . Parts Attached 26 | 7 5 4 10 Power 3 | 1 1 . 1 Engine 3 | 1 1 . 1 Core . | . . . . Reactor . | . . . . Propulsion 5 | 2 . 1 2 Treads 4 | 2 . 1 1 Leg . | . . . . Wheel 1 | . . . 1 Hover . | . . . . Flight . | . . . . Utility 10 | 2 2 1 5 Device 2 | 1 . . 1 Storage 3 | 1 2 . . Processor 2 | . . . 2 Hackware . | . . . . Protection 3 | . . 1 2 Artifact . | . . . . Weapon 8 | 2 2 2 2 Energy Gun 2 | 1 1 . . Energy Cannon . | . . . . Ballistic Gun 5 | 1 . 2 2 Ballistic Cannon . | . . . . Launcher . | . . . . Special Weapon 1 | . 1 . . Impact Weapon . | . . . . Slashing Weapon . | . . . . Piercing Weapon . | . . . . Special Melee Weapon . | . . . . Unidentified Prototypes . | . . . . Parts Lost 16 | . . 4 12 Power 2 | . . . 2 Propulsion 5 | . . 2 3 Utility 4 | . . . 4 Weapon 5 | . . 2 3 Highest Loss Streak 9 | . . 3 9 To Critical Strikes . | . . . . Average Backups 8 | 3 8 11 10 Power 1 | 1 2 2 1 Propulsion 1 | . 1 1 . Utility 2 | . 2 5 3 Weapon 2 | 1 2 2 4 Tool/Special . | . . . . Unused Backups 9 | . . . 9 Power 1 | . . . 1 Propulsion . | . . . . Utility 4 | . . . 4 Weapon 4 | . . . 4 Tool/Special . | . . . . Average Slot Usage (%) 96 | . 99 90 86 Engine 12 | . 14 14 8 Treads 22 | . 27 20 3 Wheel 1 | . . . 5 Device 12 | . 14 5 10 Storage 12 | . 14 14 9 Processor 3 | . . . 16 Protection 3 | . . 8 13 Energy Gun 9 | . 13 3 . Ballistic Gun 15 | . 13 24 17 Special Weapon 1 | . 1 . . Peak Build Rating 16 | 7 8 8 16 Average Rating 8 | 5 7 7 14 On Entrance 5 | . 7 8 7 Avg Prop Armor Cover (%) 8 | . . . 8 Naked Turns . | . . . . Heaviest Build 34 | 13 28 30 34 Greatest Support 40 | 40 40 40 20 Greatest Overweight (x) 3 | . . 1 3 Average Overweight (x) . | . . . 2 Largest Inventory Capacity 15 | 8 15 15 15 Average Capacity 12 | 7 11 15 15 Most Carried 13 | 5 13 13 13 Average Carried 8 | 3 8 11 10 Final Capacity 15 | 8 15 15 15 Final Carried 13 | 5 13 11 9 Class Distribution -------------------- 80% | Mutant 12% | Skirmisher 4% | Scavenger-Mutant 3% | Scavenger-Skirmisher Dominant Class ---------------- Mutant | -10/Materials Mutant | -10/Subcaves Skirmisher | -8/Materials Resources | -11 -10 -10 -8 ----------- Run | Yrd Mat Sub Mat Matter Collected 679 | 284 223 62 110 Remotely . | . . . . Salvage Created 825 | 130 433 99 163 Parts 62 | 13 29 9 11 Haulers Intercepted 2 | . 2 . . Recyclers Shooed 1 | . 1 . . Parts Field Recycled . | . . . . Retrieved Matter . | . . . . Parts Self-Destructed 14 | . . 14 . Prevented . | . . . . Parts Restored . | . . . . Kills | -11 -10 -10 -8 ------- Run | Yrd Mat Sub Mat Combat Hostiles Destroyed 20 | . 11 4 5 Guns 20 | . 11 4 5 Classes Destroyed 7 | 1 5 1 . Builder 1 | . 1 . . Tunneler 6 | 5 1 . . Hauler 2 | . 2 . . Watcher 1 | . 1 . . Swarmer 12 | . 6 3 3 Grunt 5 | . 5 . . Sentry 3 | . . 1 2 Best Kill Streak 3 | 2 3 3 3 Combat Bots Only 3 | . 3 3 3 Max Kills in Single Turn 2 | 1 2 1 1 Gunslinging 1 | . 1 . . Exploded . | . . . . Melee . | . . . . Uniques/NPCs Destroyed . | . . . . Combat | -11 -10 -10 -8 -------- Run | Yrd Mat Sub Mat Hostile Shots Fired 239 | . 65 79 95 Missed 56 | . 13 24 19 Hits 183 | . 52 55 76 Projectile 183 | . 52 55 76 Critical Strikes 4 | . 1 . 3 Damage Taken 1893 | . 574 395 924 Core 250 | . 113 41 96 Absorbed by Shields . | . . . . Redirected to Shielding 18 | . . . 18 Core Remaining (%) 69 | 100 . 38 . Volleys Fired 88 | 8 45 8 27 Largest 2 | 2 2 2 2 Hottest 100 | 70 100 70 100 Shots Fired 169 | 16 87 15 51 Gun 163 | 16 84 15 48 Cannon . | . . . . Launcher . | . . . . Special 6 | . 3 . 3 Kinetic 109 | 8 42 11 48 Thermal 60 | 8 45 4 3 Explosive . | . . . . Electromagnetic . | . . . . Robot Hit Streak 8 | 3 8 7 8 Robot Miss Streak 7 | 2 4 7 2 Penetration Max . | . . . . Secondary Targets 3 | . 2 . 1 Max Gunslinging Chain 1 | . 1 . 1 Shots Hit Robots 104 | 10 51 8 35 Core Hits 40 | 5 22 5 8 Critical Kills . | . . . . Critical Parts Destroyed . | . . . . Critical Strikes 7 | . 7 . . Burn 7 | . 7 . . Melee Attacks . | . . . . Impact . | . . . . Slashing . | . . . . Piercing . | . . . . Sneak Attacks . | . . . . Combat Hostiles . | . . . . Follow-up Attacks . | . . . . Damage Inflicted 1412 | 123 670 118 501 Guns 1412 | 123 670 118 501 Cannons . | . . . . Explosions . | . . . . Melee . | . . . . Ramming . | . . . . Kinetic 928 | 61 272 94 501 Thermal 484 | 62 398 24 . Explosive . | . . . . Electromagnetic . | . . . . Impact . | . . . . Slashing . | . . . . Piercing . | . . . . Highest Corruption . | . . . . Average Corruption . | . . . . Corruption Purged . | . . . . Corruption Blocked . | . . . . Overload Shots . | . . . . Overflow Damage . | . . . . Projectiles . | . . . . Explosions . | . . . . Melee . | . . . . Knockbacks . | . . . . Impact . | . . . . Kinetic . | . . . . Secondary . | . . . . Self-Inflicted Damage . | . . . . Shots . | . . . . Rammed . | . . . . Targets Rammed . | . . . . Kicked . | . . . . Crushed . | . . . . Highest Temperature 153 | 36 153 . 24 Average Temperature 30 | 12 36 . 10 Received Heat Transfer 735 | . 216 195 324 Siege Activations . | . . . . Martial Activations . | . . . . Shielding Activations . | . . . . Robots Disrupted . | . . . . Combat Hostiles . | . . . . Robots Corrupted . | . . . . Combat Hostiles . | . . . . Parts Fried . | . . . . Impact Corruptions . | . . . . Robots Melted . | . . . . Combat Hostiles . | . . . . Parts Melted 5 | . 5 . . Heat Transferred 1961 | 185 1702 74 . Parts Sabotaged . | . . . . Parts Stolen . | . . . . Parts Stripped . | . . . . Power Chain Reactions . | . . . . Alert | -11 -10 -10 -8 ------- Run | Yrd Mat Sub Mat Maximum Alert Level . | . . . . Low Security (%) 100 | 100 100 . 100 Level 1 . | . . . . Level 2 . | . . . . Level 3 . | . . . . Level 4 . | . . . . Level 5 . | . . . . High Security . | . . . . Max Security . | . . . . Peak Influence 78 | 5 78 . 59 Initial 59 | . . . 59 Average 16 | 1 17 . 15 Influence Increases 797 | 25 352 245 175 Destroy 0b10 Robot/C 400 | . 220 80 100 Destroy 0b10 Robot/NC 50 | 25 25 . . Destroy Leader 86 | . 56 . 30 Successful Hack 15 | . 15 . . Disable Machine 15 | . . . 15 Destroy Structure 6 | . 6 . . Lose Combat Pursuer 225 | . 30 165 30 Influence Decreases 797 | 25 345 137 290 Entered New Map 60 | . . 4 56 Time Decay 611 | 25 345 93 148 Lost Part 126 | . . 40 86 Squads Dispatched 3 | . 2 . 1 Investigation 2 | . 2 . . Extermination . | . . . . Reinforcement 1 | . . . 1 Assault . | . . . . Garrison . | . . . . Intercept . | . . . . Searches Triggered . | . . . . Construction Impeded . | . . . . Haulers Reinforced . | . . . . Active Scanning Responses . | . . . . Cargo Convoy Interrupts . | . . . . Stealth | -11 -10 -10 -8 --------- Run | Yrd Mat Sub Mat Distress Signals . | . . . . Communications Jammed . | . . . . Distress Signals . | . . . . Times Spotted 39 | . 19 10 10 Peak Tracking Total 6 | . 5 6 5 Tactical Retreats 7 | . 2 4 1 Traps | -11 -10 -10 -8 ------- Run | Yrd Mat Sub Mat Traps Triggered 3 | . 3 . . Indirectly . | . . . . Trap Hack Attempts . | . . . . Triggered . | . . . . Disarmed . | . . . . Reprogrammed . | . . . . Reused . | . . . . Traps Extracted . | . . . . Installed . | . . . . Triggered . | . . . . Machines | -11 -10 -10 -8 ---------- Run | Yrd Mat Sub Mat Machines Disabled 1 | . . . 1 Max in Single Turn 1 | . . . 1 Machines Repaired . | . . . . Machines Dismantled . | . . . . Machines Sabotaged . | . . . . Overloaded Fab Kills . | . . . . Hacking | -11 -10 -10 -8 --------- Run | Yrd Mat Sub Mat Machines Accessed 9 | . 8 . 1 Terminals 7 | . 6 . 1 Fabricators . | . . . . Repair Stations . | . . . . Recycling Units 2 | . 2 . . Scanalyzers . | . . . . Garrison Access . | . . . . Total Hacks 21 | . 19 . 2 Successful 12 | . 11 . 1 Failed 9 | . 8 . 1 Catastrophic 2 | . 2 . . Database Lockouts . | . . . . Manual 11 | . 11 . . Terminals 17 | . 15 . 2 Fabricators . | . . . . Repair Stations . | . . . . Recycling Units 4 | . 4 . . Scanalyzers . | . . . . Garrison Access . | . . . . Terminal Hacks 6 | . 5 . 1 Record 2 | . 1 . 1 Terminal Index 1 | . 1 . . Registered Prototypes 1 | . 1 . . Zone Layout 2 | . 2 . . Fabricator Hacks . | . . . . Repair Station Hacks . | . . . . Recycling Unit Hacks 3 | . 3 . . Report Inventory 2 | . 2 . . Retrieve Components 1 | . 1 . . Scanalyzer . | . . . . Garrison Access Hacks . | . . . . Unauthorized Hacks 3 | . 3 . . Terminals 2 | . 2 . . Botnet 1 | . 1 . . Operators 1 | . 1 . . Fabricators . | . . . . Repair Stations . | . . . . Recycling Units 1 | . 1 . . Reject 1 | . 1 . . Scanalyzers . | . . . . Garrison Access . | . . . . Data Cores Recovered . | . . . . Used . | . . . . Hacking Detections 7 | . 6 . 1 Full Trace Events 1 | . 1 . . Feedback Events . | . . . . Feedback Blocked . | . . . . Robot Schematics Acquired . | . . . . Robots Built . | . . . . Authchips . | . . . . Time . | . . . . Total Robot Build Rating . | . . . . Part Schematics Acquired . | . . . . Parts Built . | . . . . Authchips . | . . . . Time . | . . . . Total Part Build Rating . | . . . . Part Studies Acquired . | . . . . Parts Repaired . | . . . . Time . | . . . . Parts Recycled . | . . . . Recycled Matter . | . . . . Retrieved Matter . | . . . . Retrieved Components 8 | . 8 . . Parts Scanalyzed . | . . . . Part Schematics Acquired . | . . . . Parts Damaged . | . . . . Bothacking | -11 -10 -10 -8 ------------ Run | Yrd Mat Sub Mat Used RIF Installer . | . . . . Robots Hacked . | . . . . Non-combat . | . . . . Combat . | . . . . Robot Hacks Applied . | . . . . Relay Couplers Released . | . . . . Fabnet Peak Effective % . | . . . . Robots Rewired . | . . . . Allies Hacked . | . . . . Hacks Repelled . | . . . . Allies | -11 -10 -10 -8 -------- Run | Yrd Mat Sub Mat Total Allies . | . . . . Largest Group . | . . . . Highest-Rated Group . | . . . . Highest-Rated Ally . | . . . . Total Orders . | . . . . Ally Attacks . | . . . . Total Damage . | . . . . Kills . | . . . . Allies Corrupted . | . . . . Allies Melted . | . . . . Intel | -11 -10 -10 -8 ------- Run | Yrd Mat Sub Mat Active Infowar (turns) 2317 | 51 1686 76 504 Sensors 373 | . . . 373 Seismic 2039 | 51 1686 76 226 T.N.C. 503 | . . . 503 Robot Analysis Total . | . . . . Derelict Logs Recovered . | . . . . Drone Launches . | . . . . Drone Recoveries . | . . . . Exploration | -11 -10 -10 -8 ------------- Run | Yrd Mat Sub Mat Turns Passed 2560 | 163 1686 207 504 Spaces Moved 1347 | 80 904 89 274 Core 3 | 3 . . . Treads 1111 | 77 904 89 41 Legs . | . . . . Wheels 233 | . . . 233 Hover . | . . . . Flight . | . . . . Fastest Speed 50 | 50 160 160 110 Average Speed 158 | 155 160 201 142 Slowest Speed 240 | 160 160 240 240 Overloaded Moves . | . . . . Propulsion Burnouts . | . . . . Robots Hopped . | . . . . Potential Cave-ins . | . . . . Cave-ins Triggered . | . . . . Exploration Rate (%) 30 | 5 99 7 9 Regions Visited 3 Branch Regions 1 Pre-discovered Areas . | . . . . Known Exits Taken . | . . . . Unknown Exits Taken 3 | 1 1 1 . Scrap Searched . | . . . . Spaces Dug 3 | . 3 . . Terrain Destroyed 3 | . 3 . . Melee . | . . . . Projectile 3 | . 3 . . AOE . | . . . . Terrain Rammed . | . . . . Walls Destroyed . | . . . . Machines Disabled . | . . . . Actions | -11 -10 -10 -8 --------- Run | Yrd Mat Sub Mat Total 1579 | 99 1049 102 329 Wait 83 | . 77 1 5 Move 1344 | 79 903 88 274 Hop . | . . . . Pick Up 24 | 5 10 1 8 Fast Attach 10 | 7 1 . 2 Attach 13 | . 1 3 9 Detach 1 | . 1 . . Swap 11 | . 7 1 3 Drop 5 | . 4 . 1 Fire 88 | 8 45 8 27 Melee . | . . . . Ram . | . . . . Kick . | . . . . Crush . | . . . . Escape Stasis . | . . . . Rewire . | . . . . Trap . | . . . . Miscellaneous . | . . . . Route ------- -11/Scrapyard -10/Materials (discovered 5 exits: [*Mat x3] / [*Min] / [*Sub]) -10/Subcaves (discovered 2 exits: *Mat / [*Rec]) -8/Materials History --------- Turn | Location | Event 2 | -11/Scrapyard | Met Revision 17 35 | -11/Scrapyard | Discovered new exit (range 12) 164 | -11/Scrapyard | Entered Materials 317 | -10/Materials | Build established: Mutant 934 | -10/Materials | Discovered new exit (range 11) 967 | -10/Materials | Discovered new exit (range 15) 1136 | -10/Materials | Discovered new exit (range 8) 1536 | -10/Materials | Discovered new exit (range 14) 1840 | -10/Materials | Discovered new exit (range 6) 1850 | -10/Materials | Entered Subcaves 1851 | -10/Subcaves | Approached by a straggling Scientist 1897 | -10/Subcaves | Core integrity fell below 50% 1931 | -10/Subcaves | Lost 3 parts (1n2w) 1939 | -10/Subcaves | Discovered new exit (range 16) 1947 | -10/Subcaves | Shifting Twisted Machinery released Sub. Monowheel 1954 | -10/Subcaves | Shifting Twisted Machinery released Flamer 1992 | -10/Subcaves | Discovered new exit (range 8) 2057 | -10/Subcaves | Entered Materials 2057 | -8/Materials | Evolved 4 slots: Utility x4 2545 | -8/Materials | Build established: Skirmisher 2561 | -8/Materials | Self-destructed Last Messages --------------- R-06 Scavenger collects Imp. Ion Engine. Acquired Assault Cannon. Acquired Hacking Suite. Wheel destroyed. Destroyed Flight Unit. Lgt. Armor Plating destroyed. S-10 Pest destroyed. Assault Rifle destroyed. S-10 Pest destroyed. Ion Engine destroyed. Lgt. Treads destroyed. S-10 Pest destroyed. R-06 Scavenger collects Lgt. Ion Engine. Critical hit (Burn: +37). K-01 Serf collects debris. R-06 Scavenger collects Lgt. Assault Rifle. K-01 Serf collects debris. Imp. Sensor Array destroyed. Hvy. Assault Rifle destroyed. Lgt. Armor Plating destroyed. Map ----- +----------------------------------------------------+ | ??????? #???????????????????????????????????? | | ??????"""" #???????????????????????????????????? | | ??????"""" #???????????????????????????????????? | | ?????""""" #???????????????????????????????????? | | ????#""""" #???????????????????????????????????? | | ????#""""" #???????????????????????????????????? | | ????#""""" #???????????????????????????????????? | | ????#""""" ################ #????????????????? | | ????# + ! +????????????????? | | ????#####+#### ########## #????????????????? | | ?????# #?????????????????????????????? | | ?????# ##### #???????????#?????????????????? | | ?????# #####+##????????? #?????????????????? | | ?????##### #! #????????? #?????????????????? | | ########## # #????????? #?????????????????? | | """"" # # #????????? #?????????????????? | | ""T"" + + """ #????????? #?????????????????? | | # # """ #????????? #?????????????????? | | | [ # # """ #????????? #?????????????????? | | ########## ########??????### ###???????????????? | | ? ??# ############## #???????????????? | | """ # #???????????????? | | R" + r #???????????????? | | "" """ # % #####???????????? | | ?" ??# #####k####g### ????? | | "" ????#######??# % %@ ### ########## ????? | | ???????????????# g #?? #?????????????????? | | ?????????????????# g #?? +?????????????????? | | ?????????????????# """#?? #?????????????????? | | ?????????????????# R"#???+?????????????????? | | ?????????????????# """#?????????????????????? | | ?????????????????# #?????????????????????? | | ?????????????????###########?????????????????????? | | ?????????????????????????????????????????????????? | | ?????????????????????????????????????????????????? | | ?????????????????????????????????????????????????? | | ?????????????????????????????????????????????????? | | ?????????????????????????????????????????????????? | | ?????????????????????????????????????????????????? | | ?????????????????????????????????????????????????? | | ?????????????????????????????????????????????????? | | ?????????????????????????????????????????????????? | | ?????????????????????????????????????????????????? | | a????????????????????????????????????????????????? | | ?????????????????????????????????????????????????? | | ?????????????????????????????????????????????????? | | ?????????????????????????????????????????????????? | | ?????????????????????????????????????????????????? | | ?????????????????????????????????????????????????? | | ?????????????????????????????????????????????????? | +----------------------------------------------------+ Best States ------------- Heat Dissipation 31 Energy Generation 10 Energy Capacity 250 Matter Stores 300 Matter Capacity 300 Sight Range 16 Robot Scan Range 15 Terrain Scan Density 10 Armor Coverage 150 Core Shielding 20 Evasion (%) 40 Recoil Reduction 2 Item Schematics ----------------- None Robot Schematics ------------------ None Fabricated ------------ Nothing Repaired ---------- Nothing Studied --------- None Alien Tech Used ----------------- None Achievements -------------- None Challenges ------------ None Game ------ Seed TripodThrusterMeganuke Manual? 0 Play Time 00:20:28 Cumulative 26.0 hours Start 2026.04.17 @ 02:11:36 End 2026.04.17 @ 02:30:47 Sessions 1 Manual Loads 0 Difficulty Rogue Special Mode None Game No. 19 Rogue 19 Adventurer 0 Explorer 0 Win Type - Total 0 Types 0/0/0/0/0/0/0/0/0/0 Lore% 24 Gallery% 20 Achievement% 21 Wizard Run 0 Options --------- Layout 0 ASCII 0 Keyboard 1 Movement Arrows Keybinds 0 Fullscreen 2 Font 18/SmallcapsGlow Map View 76x50 Zoom Use 0% Tactical HUD 0 Map Filters NONE Filters NONE Steam 1 RUN: 8e5133fa-bd9d-4f8e-9e7f-113e7db5b9a9